bitfinex-derivatives/quotes_ETHF0:USTF0_20250329
["timestamp","ask_amount","ask_price","bid_price","bid_amount"]
[1743269702296,1.09431,1828.5,1828.4,0.00820031]
[1743269702898,2.7364,1828.1,1827.6,50.529]
[1743269703093,5.9442,1828.1,1827.6,11.6378]
[1743269703284,4.939,1828.3,1827.6,11.6378]
[1743269703285,1.09479,1827.7,1827.6,11.6378]
[1743269703691,3.2078,1828.0,1827.6,11.6378]
[1743269703895,1.09473,1827.8,1827.7,4.939]
[1743269704395,1.09473,1827.8,1827.6,14.8456]
[1743269704396,1.09485,1827.6,1827.5,0.00820031]
[1743269704593,1.09485,1827.6,1827.0,51.6242]
[1743269704594,5.94504,1827.6,1827.0,51.6242]
[1743269704796,5.94504,1827.6,1826.9,8.1468]
[1743269704797,3.2078,1827.3,1826.9,3.2078]
[1743269704992,11.5834,1827.5,1827.0,11.6185]
[1743269705299,11.5834,1827.5,1827.0,18.58452814]
[1743269705501,14.7912,1827.5,1827.0,12.71366]
[1743269705688,11.5834,1827.5,1827.0,11.6185]
[1743269705887,0.00820031,1827.4,1827.3,3.2078]
[1743269706188,1.10321031,1827.4,1827.2,1.09509]
[1743269706389,1.09507,1827.3,1827.1,9.25115031]
[1743269706595,1.09509,1827.2,1827.1,8.15600031]
[1743269706790,1.09509,1827.2,1827.1,4.94820031]
[1743269707101,1.09509,1827.2,1827.1,0.00820031]
[1743269707301,0.00820031,1827.4,1827.1,0.00820031]
[1743269707494,0.00820031,1827.4,1827.3,1.09503]
[1743269708996,0.00820031,1827.4,1827.2,3.2078]
[1743269708997,1.09503,1827.3,1827.2,3.2078]
[1743269709199,1.09509,1827.2,1827.1,0.00820031]
[1743269709700,1.09527,1826.9,1826.8,3.2078]
[1743269709899,2.73804,1827.0,1826.6,3.2078]
[1743269710095,2.73834,1826.8,1826.4,53.7368]
[1743269710288,1.09551,1826.5,1826.4,53.7368]
[1743269710600,3.2078,1827.0,1826.2,10.3367]
[1743269710894,11.144,1827.0,1826.6,3.2078]
[1743269711100,1.09529,1826.9,1826.6,3.2078]
[1743269711300,1.09547,1826.6,1826.5,1.0955]
[1743269711494,15.113,1826.8,1826.4,3.21326684]
[1743269711794,1.09551,1826.5,1826.4,0.00546684]
[1743269712199,3.2078,1826.6,1826.4,0.00546684]
[1743269712200,11.9052,1826.6,1826.4,1.10100684]
[1743269712396,11.9052,1826.6,1826.4,0.00546684]
[1743269712591,1.09537,1826.8,1826.6,1.09545]
[1743269712792,18.9294,1826.9,1826.4,5.95216684]
[1743269713097,1.09534,1826.8,1826.6,3.2078]
[1743269713301,11.9052,1827.1,1826.7,1.09533]
[1743269713504,1.09537,1826.8,1826.7,1.09539]
[1743269713698,2.73804,1827.0,1826.5,3.2078]
[1743269713895,1.09545,1826.6,1826.5,3.2078]
[1743269714200,5.94587,1827.0,1826.5,1.0955]
[1743269714390,1.09539,1826.7,1826.5,1.0955]
[1743269714590,15.2063,1826.8,1826.4,1.10098684]
[1743269714800,1.09551,1826.5,1826.4,0.00546684]
[1743269714999,11.9985,1826.6,1826.4,1.10103684]
[1743269715206,1.09551,1826.5,1826.4,0.00546684]
[1743269715799,1.0953,1826.9,1826.4,5.95211684]
[1743269716004,0.00820031,1827.4,1827.3,1.09503]
[1743269716199,1.09477,1827.8,1827.7,1.09479]
[1743269716400,13.09327,1827.8,1827.6,3.2078]
[1743269716702,5.94361,1828.5,1827.7,2.73696]
[1743269716903,5.94361,1828.5,1828.0,4.30239]
[1743269716904,11.9985,1828.4,1828.0,4.30239]
[1743269717099,2.73609,1828.3,1827.9,3.2078]
[1743269717294,2.73639,1828.1,1827.5,8.1688]
[1743269717496,13.12051,1828.0,1827.9,0.00820031]
[1743269718200,1.09492,1827.5,1827.3,3.2078]
[1743269718507,2.73759,1827.3,1826.6,4.30321]
[1743269718704,1.0953,1826.9,1826.7,1.09535]
[1743269718898,2.73789,1827.1,1826.6,3.2078]
[1743269719203,12.0259,1826.9,1826.8,1.09533]
[1743269719404,1.09535,1826.8,1826.7,0.00546684]
[1743269720201,4.30315,1826.8,1826.7,0.00546684]
[1743269720399,1.09535,1826.8,1826.7,0.00546684]
[1743269720904,12.0259,1826.9,1826.3,4.972]
[1743269721105,11.3551,1826.7,1826.6,1.09545]
[1743269721303,1.09547,1826.6,1826.4,4.30333]
[1743269721707,1.09551,1826.5,1826.4,3.2078]
[1743269721899,1.09547,1826.6,1826.2,53.7738]
[1743269722099,1.09547,1826.6,1826.2,58.7388]
[1743269722307,0.00820031,1827.0,1826.9,1.09527]
[1743269722904,0.00820031,1827.0,1826.9,11.4622]
[1743269723099,1.09527,1826.9,1826.8,1.09531]
[1743269723409,11.6922,1826.9,1826.7,12.88955]
[1743269723611,1.09533,1826.8,1826.7,11.7942]
[1743269723806,0.00820031,1827.0,1826.9,1.09527]
[1743269724001,3.2078,1827.5,1826.9,10.95096]
[1743269724307,3.2078,1827.5,1827.0,11.7942]
[1743269724506,11.6922,1827.4,1827.2,1.09504]
[1743269724806,11.6922,1827.4,1827.0,12.88937]
[1743269724807,1.09511,1827.2,1827.0,12.88937]
[1743269725000,1.09515,1827.1,1827.0,11.7942]
[1743269725706,1.09521,1827.0,1826.9,0.00820031]
[1743269725905,12.78741,1827.0,1826.9,0.00820031]
[1743269726506,1.09551,1826.5,1826.4,12.98646]
[1743269726809,5.94618,1826.8,1826.4,11.8909]
[1743269727015,1.09549,1826.6,1826.5,1.0955]
[1743269727211,12.58671,1826.7,1826.6,1.09545]
[1743269727501,11.4913,1826.7,1826.2,55.554]
[1743269727808,1.09558,1826.4,1826.3,12.98653]
[1743269727995,14.2298,1826.7,1826.3,12.98653]
[1743269728198,3.2078,1827.2,1826.6,4.30325]
[1743269728403,11.4913,1827.0,1826.7,11.8909]
[1743269728705,1.09545,1826.6,1826.5,4.983]
[1743269728911,1.09563,1826.3,1826.2,53.7738]
[1743269729212,1.09563,1826.3,1826.2,50.566]
[1743269729401,1.09569,1826.2,1826.1,17.1554]
[1743269729599,2.73878,1826.6,1826.1,17.1554]
[1743269729600,12.63167,1826.3,1826.1,17.1554]
[1743269729806,12.63167,1826.3,1826.2,11.5361]
[1743269729807,12.63987031,1826.3,1826.2,11.5361]
[1743269730003,0.00820031,1826.3,1826.2,11.5361]
[1743269730203,0.00820031,1826.3,1826.2,7.068073]
[1743269730408,0.00820031,1826.3,1825.9,3.2078]
[1743269730712,14.28331031,1826.3,1825.9,3.2078]
[1743269730906,1.09587,1825.9,1825.8,1.09593]
[1743269731109,1.09569,1826.2,1825.7,22.47388]
[1743269731299,1.0958,1826.1,1826.0,1.09579]
[1743269731504,0.00820031,1826.3,1826.2,1.09569]
[1743269731700,0.00820031,1826.3,1826.2,9.28949]
[1743269731910,0.00820031,1826.3,1826.2,12.63179]
[1743269732612,0.00820031,1826.3,1826.2,15.83959]
[1743269733112,0.00820031,1826.3,1826.2,12.63179]
[1743269733312,1.10383031,1826.3,1826.2,11.5361]
[1743269734109,1.10383031,1826.3,1826.2,12.63179]
[1743269734309,1.09541,1826.7,1826.4,2.73893]
[1743269734508,1.09541,1826.7,1826.3,2.73903]
[1743269734509,1.09563,1826.4,1826.2,14.7439]
[1743269734715,3.2078,1827.1,1826.5,2.73879]
[1743269734903,1.09539,1826.8,1826.6,11.922]
[1743269735107,2.73819,1826.9,1826.5,3.2078]
[1743269735410,2.73888,1826.5,1826.1,3.2078]
[1743269735615,4.30325,1826.6,1826.5,0.00820031]
[1743269735809,1.09569,1826.2,1826.1,3.2078]
[1743269736206,2.73915,1826.3,1825.8,1.0959]
[1743269736411,1.09587,1825.9,1825.8,1.09588]
[1743269736712,2.7391,1826.3,1825.7,20.0691]
[1743269736713,2.73924,1826.2,1825.7,20.0691]
[1743269736916,1.09588,1825.9,1825.8,1.09589]
[1743269737112,1.09587,1826.0,1825.8,1.09589]
[1743269737315,1.09587,1826.0,1825.9,1.09587]
[1743269737520,1.09591,1825.9,1825.8,1.09591]
[1743269737825,1.09593,1825.8,1825.7,21.16506]
[1743269738316,1.09587,1826.0,1825.9,1.09585]
[1743269738613,1.09593,1825.8,1825.7,21.16506]
[1743269738819,1.09593,1825.8,1825.7,3.2078]
[1743269739214,1.09593,1825.8,1825.3,4.30399]
[1743269739215,1.09617,1825.4,1825.3,4.30399]
[1743269739445,1.09629,1825.2,1825.1,4.955]
[1743269739724,1.09629,1825.2,1825.1,11.1788]
[1743269739923,1.09635,1825.1,1825.0,100.0]
[1743269740222,7.3272,1825.3,1825.0,100.0]
[1743269740417,5.48766031,1825.9,1825.0,100.0]
[1743269740418,3.21600031,1825.9,1825.0,110.48049458]
[1743269740616,1.09621,1825.4,1825.2,1.09625]
[1743269741015,1.09621,1825.4,1825.3,11.1788]
[1743269741619,1.09629,1825.2,1825.0,104.962]
[1743269741920,1.09635,1825.1,1825.0,100.0]
[1743269742224,4.30415,1825.1,1825.0,100.0]
[1743269742619,1.09635,1825.1,1825.0,100.0]
[1743269743725,3.59635,1825.1,1825.0,100.0]
[1743269744326,3.59635,1825.1,1825.0,81.9479]
[1743269744824,3.59635,1825.1,1825.0,80.74959]
[1743269745123,3.59635,1825.1,1825.0,38.92826]
[1743269745318,1.09635,1825.1,1825.0,38.92826]
[1743269747826,3.2078,1825.4,1825.0,38.92826]
[1743269748124,1.09629,1825.2,1825.1,11.6471]
[1743269748517,1.09635,1825.1,1825.0,38.92826]
[1743269748824,4.30415,1825.1,1825.0,38.92826]
[1743269749427,6.80415,1825.1,1825.0,37.71848]
[1743269749627,6.80415,1825.1,1825.0,35.06953]
[1743269749828,6.80415,1825.1,1825.0,31.47148]
[1743269750126,6.80415,1825.1,1825.0,6.65473]
[1743269750324,1.09704,1824.0,1823.9,1.09706]
[1743269750622,3.2078,1824.3,1824.0,17.21150781]
[1743269750824,1.09686,1824.3,1824.0,11.7323]
[1743269751122,2.74151,1824.7,1824.0,11.7323]
[1743269751123,2.74149,1824.7,1824.3,1.09681]
[1743269751328,1.09677,1824.5,1824.4,11.7323]
[1743269751529,0.0082239,1824.7,1824.5,1.09668]
[1743269751717,1.1048139,1824.7,1824.6,11.7323]
[1743269751920,1.1048139,1824.7,1824.6,17.21150781]
[1743269752826,1.1048139,1824.7,1824.6,11.7323]
[1743269753125,1.1048139,1824.7,1824.6,17.21150781]
[1743269754625,4.3126139,1824.7,1824.6,17.21150781]
[1743269754824,1.1048139,1824.7,1824.6,17.21150781]
[1743269755027,4.3126139,1824.7,1824.6,17.21150781]
[1743269755327,4.3126139,1824.7,1824.6,11.7323]
[1743269755722,1.09683,1824.3,1824.2,7.2048]
[1743269756129,1.09683,1824.3,1824.2,12.68400781]
[1743269756532,4.30461,1824.4,1824.2,12.68400781]
[1743269756730,4.30457,1824.4,1824.3,5.47920781]
[1743269756932,4.30457,1824.4,1824.3,16.65120781]
[1743269757231,4.30457,1824.4,1824.3,17.74803781]
[1743269757232,3.2078,1824.4,1824.3,17.74803781]
[1743269757731,4.3045,1824.6,1824.4,1.09677]
[1743269757930,4.3045,1824.6,1824.5,11.172]
[1743269758230,3.2078,1824.6,1824.5,17.74791781]
[1743269758428,0.0082239,1824.7,1824.5,16.65120781]
[1743269758732,0.0082239,1824.7,1824.6,6.57585781]
[1743269759325,1.09648,1824.9,1824.8,1.0965]
[1743269759530,1.09658,1824.8,1824.7,5.47920781]
[1743269759729,5.94869,1825.1,1824.7,1.09654]
[1743269759927,5.94869,1825.1,1824.8,6.57573781]
[1743269760130,5.94869,1825.1,1824.6,5.47920781]
[1743269760131,3.2078,1825.1,1824.6,5.47920781]
[1743269760429,0.0082239,1825.0,1824.9,1.09647]
[1743269760634,3.2078,1825.6,1825.0,14.13056]
[1743269760824,1.09631,1825.2,1825.0,18.51340781]
[1743269761126,3.2078,1825.5,1825.1,5.47920781]
[1743269761329,1.09626,1825.3,1825.2,1.09628]
[1743269761534,1.09618,1825.4,1825.3,1.09621]
[1743269761722,1.09618,1825.4,1825.3,5.47920781]
[1743269761723,1.1044039,1825.4,1825.3,5.47920781]
[1743269761925,1.09653,1824.8,1824.7,1.1047839]
[1743269762121,1.09653,1824.8,1824.7,0.0082239]
[1743269762325,1.09653,1824.8,1824.7,6.58402171]
[1743269762522,2.74089,1825.1,1824.7,6.58397171]
[1743269762736,1.09653,1824.9,1824.8,5.47920781]
[1743269763231,2.74061,1825.3,1824.8,5.47920781]
[1743269763426,1.09641,1825.0,1824.9,12.74260781]
[1743269763624,1.09641,1825.0,1824.7,0.0082239]
[1743269763625,1.09647,1824.9,1824.8,5.47920781]
[1743269763830,2.74098,1825.1,1824.7,0.0082239]
[1743269763831,1.09653,1824.8,1824.7,0.0082239]
[1743269764330,1.09653,1824.8,1824.7,5.48743171]
[1743269764533,1.09653,1824.8,1824.7,6.58402171]
[1743269764729,1.09653,1824.8,1824.7,5.48743171]
[1743269764933,6.80433,1824.8,1824.7,0.0082239]
[1743269766128,6.83883,1824.8,1824.7,0.0082239]
[1743269766325,6.83883,1824.8,1824.7,3.9e-06]
[1743269766934,2.74149,1824.7,1824.2,10.9698]
[1743269767233,4.30457,1824.4,1824.3,5.47920781]
[1743269767431,1.09683,1824.3,1824.2,10.9698]
[1743269769827,1.12393,1824.3,1824.2,10.9698]
[1743269770031,3.62393,1824.3,1824.2,10.9698]
[1743269770231,1.09689,1824.2,1824.1,0.0082239]
[1743269770533,4.30469,1824.2,1824.1,0.0082239]
[1743269770731,0.0082239,1824.4,1824.3,1.09683]
[1743269770934,3.2078,1824.9,1824.4,1.09673]
[1743269770935,2.74134,1824.8,1824.4,1.09673]
[1743269771236,4.30446,1824.6,1824.5,11.7088]
[1743269771832,4.3043,1824.9,1824.5,17.18800781]
[1743269772136,0.0082239,1824.7,1824.6,6.57585781]
[1743269772335,1.09644,1825.0,1824.6,8.22083781]
[1743269772532,4.30413,1825.2,1824.7,5.47920781]
[1743269772735,1.09609,1825.6,1825.1,3.2078]
[1743269773031,2.73999,1825.7,1825.3,3.2078]
[1743269773225,1.09613,1825.5,1825.3,3.2078]
[1743269773534,1.09611,1825.5,1825.4,5.47920781]
[1743269775130,1.09617,1825.4,1825.3,0.0082239]
[1743269775330,1.09665,1824.6,1824.5,6.9939]
[1743269775536,1.09665,1824.6,1824.5,17.09520781]
[1743269775736,3.2078,1825.0,1824.5,5.47920781]
[1743269775934,1.09662,1824.7,1824.6,5.47920781]
[1743269776133,1.09671,1824.5,1824.4,17.1569]
[1743269776634,1.09671,1824.5,1824.4,22.63610781]
[1743269777030,0.0082239,1824.6,1824.5,1.09671]
[1743269777236,0.0082239,1824.6,1824.5,18.19191781]
[1743269777435,2.78469,1825.2,1824.5,19.59520781]
[1743269777436,5.94859,1825.2,1824.5,19.59520781]
[1743269777736,1.09659,1824.7,1824.6,5.47920781]
[1743269777938,2.74111,1825.0,1824.7,5.47920781]
[1743269777939,1.09653,1824.8,1824.7,5.47920781]
[1743269778135,6.00265,1825.2,1824.6,8.68700781]
[1743269778330,2.7409,1825.1,1824.6,8.68700781]
[1743269778530,1.09649,1824.9,1824.7,6.57574781]
[1743269778730,0.0082239,1825.1,1824.7,6.57574781]
[1743269779046,0.0082239,1825.1,1824.8,5.47920781]
[1743269779248,1.09653,1824.9,1824.8,3.2078]
[1743269779636,1.09653,1824.9,1824.8,8.68700781]
[1743269780641,1.09653,1824.9,1824.8,20.71320781]
[1743269782542,0.0082239,1825.1,1824.8,20.71320781]
[1743269782838,1.09641,1825.0,1824.9,25.25262781]
[1743269783140,1.1046039,1825.1,1825.0,1.09641]
[1743269783340,5.94775,1825.8,1825.4,1.09617]
[1743269783536,1.0961,1825.6,1825.5,17.32450781]
[1743269783730,1.0961,1825.6,1825.5,11.8453]
[1743269783935,1.0961,1825.6,1825.5,17.32450781]
[1743269784937,0.0082239,1825.7,1825.6,1.09605]
[1743269785139,1.1042139,1825.7,1825.6,5.47920781]
[1743269785643,1.1042139,1825.7,1825.6,6.57525781]
[1743269785834,1.1042139,1825.7,1825.6,5.47920781]
[1743269786342,2.7394,1826.1,1825.7,1.09597]
[1743269786540,1.09593,1825.8,1825.7,5.47920781]
[1743269786846,1.09588,1825.9,1825.8,5.47920781]
[1743269787048,1.09593,1825.8,1825.7,5.47920781]
[1743269787540,1.1041439,1825.9,1825.8,1.09593]
[1743269787737,0.0082239,1825.9,1825.8,6.57513781]
[1743269787936,1.09578,1826.1,1825.8,8.68700781]
[1743269788143,1.09578,1826.1,1825.9,6.57503781]
[1743269788342,1.09581,1826.0,1825.9,5.47920781]
[1743269788542,1.0958,1826.1,1826.0,5.47920781]
[1743269789241,1.0958,1826.1,1826.0,6.57501781]
[1743269789442,0.00540398,1826.2,1826.1,1.09575]
[1743269789642,1.10109398,1826.2,1826.1,12.60150781]
[1743269790862,1.09611,1825.5,1825.1,3.2078]
[1743269791159,3.2078,1825.5,1825.1,3.2078]
[1743269791360,1.09623,1825.3,1825.2,11.88588]
[1743269791664,1.09623,1825.3,1824.7,4.30437]
[1743269791665,1.09652,1824.9,1824.7,4.30437]
[1743269791963,1.09645,1825.0,1824.8,6.57571781]
[1743269792158,2.74075,1825.2,1824.8,5.47920781]
[1743269792362,1.09647,1825.0,1824.9,5.47920781]
[1743269792558,1.09647,1825.0,1824.8,6.57573781]
[1743269792762,0.0082239,1825.1,1825.0,1.09641]
[1743269793062,0.0082239,1825.1,1824.8,5.47920781]
[1743269793063,2.74059,1825.3,1824.9,8.68700781]
[1743269793360,1.09634,1825.2,1825.0,1.0964]
[1743269793557,1.09634,1825.2,1825.0,6.57560781]
[1743269793758,3.2078,1825.4,1825.1,5.47920781]
[1743269793962,1.09623,1825.3,1825.2,3.2078]
[1743269794164,0.00540398,1825.4,1825.3,1.09623]
[1743269794462,3.2078,1825.7,1825.3,5.47920781]
[1743269794652,7.6887,1825.9,1825.4,4.30393]
[1743269794849,1.09609,1825.6,1825.4,9.78313781]
[1743269795057,1.09602,1825.7,1825.5,6.57528781]
[1743269795454,1.09602,1825.7,1825.6,5.47920781]
[1743269795962,4.30382,1825.7,1825.6,5.47920781]
[1743269796159,1.09602,1825.7,1825.6,5.47920781]
[1743269796561,1.09596,1825.8,1825.6,6.57524781]
[1743269796764,1.09585,1826.0,1825.8,1.09591]
[1743269796963,1.09593,1825.8,1825.7,12.84710781]
[1743269797157,1.09593,1825.8,1825.7,7.3679]
[1743269797460,1.09584,1826.0,1825.8,1.09589]
[1743269797660,1.09587,1825.9,1825.8,5.47920781]
[1743269797858,1.09591,1825.9,1825.7,8.46387]
[1743269798053,6.03525,1826.2,1825.8,5.47920781]
[1743269798054,3.2078,1826.2,1825.8,5.47920781]
[1743269798258,1.09568,1826.3,1826.1,1.09574]
[1743269798460,3.2078,1826.6,1826.0,3.2078]
[1743269798768,1.09568,1826.3,1826.1,6.57493781]
[1743269798955,1.0956,1826.4,1826.2,1.09566]
[1743269799158,1.0956,1826.4,1826.2,6.57486781]
[1743269799455,1.0956,1826.4,1826.3,5.47920781]
[1743269800057,2.73932,1826.2,1825.6,3.2078]
[1743269800257,2.73932,1826.2,1825.8,8.68700781]
[1743269800258,1.09584,1826.0,1825.8,8.68700781]
[1743269800561,1.09581,1826.0,1825.9,5.47920781]
[1743269800962,2.73962,1826.0,1825.6,3.2078]
[1743269801162,1.09605,1825.6,1825.5,0.0082239]
[1743269801370,3.59605,1825.6,1825.5,3.9e-06]
[1743269801659,3.67435,1825.6,1825.5,3.9e-06]
[1743269801967,8.62135,1825.6,1825.5,3.9e-06]
[1743269802961,1.17435,1825.6,1825.5,3.9e-06]
[1743269803168,1.09605,1825.6,1825.5,5.47921171]
[1743269803363,1.09633,1825.2,1825.1,1.09635]
[1743269803562,1.09628,1825.3,1825.2,5.47841171]
[1743269803762,1.09629,1825.2,1825.1,5.47841171]
[1743269803964,1.09629,1825.2,1825.0,1.09639]
[1743269803965,1.09632,1825.2,1825.0,1.09639]
[1743269804171,1.09627,1825.3,1825.1,1.09635]
[1743269804370,7.68715,1825.6,1825.0,5.47841171]
[1743269804570,1.09627,1825.3,1825.1,1.09634]
[1743269804770,1.09627,1825.3,1825.2,5.47841171]
[1743269804969,1.09623,1825.3,1825.2,8.68621171]
[1743269805171,1.0962,1825.4,1825.2,9.78248171]
[1743269805365,1.09617,1825.4,1825.3,5.47841171]
[1743269806771,1.09635,1825.1,1825.0,0.0082239]
[1743269807272,8.1558,1825.4,1825.0,5.48663561]
[1743269807471,1.09635,1825.1,1825.0,0.0082239]
[1743269807871,1.09635,1825.1,1825.0,5.48663561]
[1743269809063,1.16905,1825.1,1825.0,5.48663561]
[1743269809268,1.09635,1825.1,1825.0,5.48663561]
[1743269811172,3.59635,1825.1,1825.0,3.9e-06]
[1743269811474,6.11705,1825.1,1825.0,3.9e-06]
[1743269811667,8.61705,1825.1,1825.0,3.9e-06]
[1743269815285,1.09681,1824.4,1824.2,11.1157]
[1743269815487,1.09677,1824.4,1824.3,5.47841171]
[1743269817174,4.30457,1824.4,1824.3,5.47841171]
[1743269817573,1.09683,1824.3,1824.2,11.1239239]
[1743269817878,1.17343,1824.3,1824.2,11.1239239]
[1743269818682,1.17343,1824.3,1824.2,0.0082239]
[1743269820686,3.67343,1824.3,1824.2,0.0082239]
[1743269820885,1.09713,1823.8,1823.7,10.72302]
[1743269821084,9.25393,1823.8,1823.7,8.86368]
[1743269821292,1.09749,1823.2,1823.1,7.1834]
[1743269821583,1.09755,1823.1,1823.0,5.7792]
[1743269821885,1.09716,1823.8,1823.2,2.74362]
[1743269822182,2.74241,1824.1,1823.0,10.6568]
[1743269822183,1.09699,1824.1,1823.8,1.09711]
[1743269822378,1.09722,1823.7,1823.5,3.2078]
[1743269822574,1.09719,1823.7,1823.6,12.40051171]
[1743269822974,3.2078,1824.0,1823.6,13.49775171]
[1743269823173,1.09713,1823.8,1823.7,8.68621171]
[1743269823482,1.09713,1823.8,1823.7,5.47841171]
[1743269823688,4.30493,1823.8,1823.7,5.47841171]
[1743269824377,2.74321,1823.6,1822.9,9.2636539]
[1743269824578,1.09731,1823.5,1823.4,11.7421]
[1743269825086,1.09731,1823.5,1823.4,15.89976171]
[1743269825383,1.0973,1823.6,1823.4,15.89976171]
[1743269825582,3.2078,1823.7,1823.5,5.25497171]
[1743269825583,4.30504,1823.7,1823.5,5.25497171]
[1743269825778,1.09719,1823.7,1823.6,11.7421]
[1743269825983,2.74254,1824.0,1823.6,15.89976171]
[1743269826184,4.30493,1823.8,1823.7,4.15766171]
[1743269826385,4.30493,1823.8,1823.7,11.7421]
[1743269827385,4.30493,1823.8,1823.7,15.89976171]
[1743269827585,5.9584539,1824.1,1823.7,15.89976171]
[1743269827797,1.09713,1823.9,1823.8,4.15766171]
[1743269828087,4.30493,1823.9,1823.8,4.15766171]
[1743269828291,1.09713,1823.9,1823.8,4.15766171]
[1743269828490,1.09702,1824.0,1823.8,4.15766171]
[1743269828691,3.2160239,1824.1,1823.9,15.12476171]
[1743269828993,1.09701,1824.0,1823.9,10.9671]
[1743269829491,4.22131,1824.0,1823.9,10.9671]
[1743269829886,1.09707,1823.9,1823.8,0.0082239]
[1743269830185,1.09707,1823.9,1823.8,3.9e-06]
[1743269830186,11.75587,1823.9,1823.8,3.9e-06]
[1743269830391,9.25587,1823.9,1823.8,3.9e-06]
[1743269830587,11.75587,1823.9,1823.8,3.9e-06]
[1743269831191,1.09749,1823.2,1823.1,7.2777]
[1743269831591,1.09749,1823.2,1823.1,11.43536171]
[1743269832186,1.09749,1823.2,1823.1,12.53289171]
[1743269832392,1.09749,1823.2,1823.1,11.43536171]
[1743269832589,1.09741,1823.4,1823.1,11.43536171]
[1743269832790,1.09702,1824.0,1823.8,1.09709]
[1743269832990,1.09703,1824.0,1823.9,3.06064171]
[1743269833196,1.09703,1824.0,1823.8,1.09709]
[1743269833392,0.0082239,1824.1,1824.0,1.09701]
[1743269833590,1.09691,1824.2,1824.0,11.0448]
[1743269833798,1.09686,1824.3,1824.1,8.75924171]
[1743269833989,1.09686,1824.3,1824.1,9.85616171]
[1743269834192,5.94883,1825.1,1824.2,5.80279171]
[1743269834496,1.09663,1824.7,1824.4,1.09672]
[1743269834694,1.09663,1824.7,1824.3,8.1588]
[1743269834695,0.0082239,1824.8,1824.7,1.09657]
[1743269834995,1.09645,1825.0,1824.7,1.09656]
[1743269835296,1.09647,1824.9,1824.8,3.06064171]
[1743269835495,1.09647,1824.9,1824.5,11.4585939]
[1743269835496,1.09665,1824.6,1824.5,7.1541239]
[1743269835996,6.04665,1824.6,1824.5,0.0082239]
[1743269836191,6.04665,1824.6,1824.5,3.06886561]
[1743269836597,6.04665,1824.6,1824.5,0.0082239]
[1743269836793,10.31405,1824.6,1824.5,0.0082239]
[1743269837198,6.04665,1824.6,1824.5,0.0082239]
[1743269837797,12.81405,1824.6,1824.5,3.9e-06]
[1743269838304,10.31405,1824.6,1824.5,3.9e-06]
[1743269838802,12.81405,1824.6,1824.5,3.9e-06]
[1743269839399,7.86405,1824.6,1824.5,3.9e-06]
[1743269839601,6.04565,1824.6,1824.5,3.9e-06]
[1743269840003,8.54565,1824.6,1824.5,3.9e-06]
[1743269840204,12.79765,1824.6,1824.5,3.9e-06]
[1743269844400,7.84865,1824.6,1824.5,3.9e-06]
[1743269844698,12.79765,1824.6,1824.5,3.9e-06]
[1743269845000,1.09695,1824.1,1824.0,11.3463]
[1743269845206,4.30475,1824.1,1824.0,11.3463]
[1743269845397,4.30475,1824.1,1824.0,14.40694171]
[1743269848005,1.09701,1824.0,1823.9,3.9e-06]
[1743269848206,10.30121,1824.0,1823.9,3.9e-06]
[1743269848401,7.85321,1824.0,1823.9,3.9e-06]
[1743269848705,12.80121,1824.0,1823.9,3.9e-06]
[1743269849404,1.09755,1823.1,1823.0,3.2078]
[1743269849606,1.09767,1822.9,1822.8,12.656]
[1743269849804,1.09792,1822.5,1822.4,3.2078]
[1743269850200,4.30572,1822.5,1822.4,1.79176171]
[1743269850608,1.09792,1822.5,1822.4,1.79176171]
[1743269850903,4.30572,1822.5,1822.4,1.79176171]
[1743269851709,9.72122,1822.5,1822.4,1.79176171]
[1743269851901,4.30572,1822.5,1822.4,1.79176171]
[1743269852102,4.30572,1822.5,1822.3,0.0082239]
[1743269852103,1.09798,1822.4,1822.3,3.9e-06]
[1743269852303,6.51348,1822.4,1822.3,3.9e-06]
[1743269852497,11.46148,1822.4,1822.3,3.9e-06]
[1743269853105,13.96148,1822.4,1822.3,3.9e-06]
[1743269854017,6.51348,1822.4,1822.3,3.9e-06]
[1743269854206,11.46248,1822.4,1822.3,3.9e-06]
[1743269854403,13.96248,1822.4,1822.3,3.9e-06]
[1743269855001,6.04698,1822.4,1822.3,3.9e-06]
[1743269855905,6.04698,1822.4,1822.3,1.79176561]
[1743269856307,1.09798,1822.4,1822.3,1.79176561]
[1743269857211,1.09797,1822.5,1822.3,1.79176561]
[1743269857413,1.1061339,1822.6,1822.4,13.04786171]
[1743269857711,1.1061339,1822.6,1822.5,1.79176171]
[1743269858007,0.0082239,1822.6,1822.5,1.79176171]
[1743269858207,4.95,1822.9,1822.6,1.79176171]
[1743269858506,3.2078,1823.0,1822.6,9.06686171]
[1743269858710,1.09772,1822.9,1822.7,7.75206171]
[1743269858915,1.09773,1822.8,1822.7,7.75206171]
[1743269859110,1.09773,1822.8,1822.7,5.9603]
[1743269859315,1.09773,1822.8,1822.3,3.9e-06]
[1743269859316,1.09798,1822.4,1822.3,3.9e-06]
[1743269859516,1.09798,1822.4,1822.3,1.79176561]
[1743269859517,4.30578,1822.4,1822.3,1.79176561]
[1743269860107,4.30578,1822.4,1822.3,3.9e-06]
[1743269860508,6.80578,1822.4,1822.3,3.9e-06]
[1743269860718,9.25578,1822.4,1822.3,3.9e-06]
[1743269862509,4.30578,1822.4,1822.3,1.79176561]
[1743269864310,3.2078,1822.6,1822.3,1.79176561]
[1743269864517,1.09792,1822.5,1822.4,13.29296171]
[1743269866013,1.0979,1822.6,1822.4,13.29296171]
[1743269866315,1.09787,1822.6,1822.5,7.52036171]
[1743269867912,0.0082239,1822.9,1822.5,10.72816171]
[1743269868116,1.09775,1822.8,1822.7,3.2078]
[1743269868317,1.09775,1822.8,1822.7,10.7332]
[1743269868618,1.09775,1822.8,1822.7,12.52496171]
[1743269868819,0.0082239,1822.9,1822.7,13.62274171]
[1743269869024,2.74344,1823.4,1822.8,1.79176171]
[1743269869218,1.09755,1823.1,1823.0,3.2078]
[1743269869718,1.09761,1823.0,1822.8,15.59778]
[1743269869919,1.09763,1823.0,1822.9,13.08406171]
[1743269870823,4.30543,1823.0,1822.9,13.08406171]